[Event "Titled Tuesday Blitz January 17 Early 2023"]
[White "Kilic, Eray"]
[Black "Mitrabha, Guha"]
[WhiteFideId "44517173"]
[BlackFideId "5057000"]
[WhiteElo "2414"]
[BlackElo "2507"]
[Result "0-1"]
[Round "11"]
[TimeControl "180+2"]
[Date "2023.01.17"]
[WhiteClock "0:00:02"]
[BlackClock "0:01:40"]

1. e4 {[%clk 0:03:00]}  c6 {[%clk 0:03:00]} 2. Nf3 {[%clk 0:03:01]}  d5 {[%clk 0:02:59]} 3. Nc3 {[%clk 0:03:01]}  dxe4 {[%clk 0:02:59]} 4. Nxe4 {[%clk 0:03:02]}  Nf6 {[%clk 0:03:00]} 5. Nxf6+ {[%clk 0:03:02]}  exf6 {[%clk 0:02:58]} 6. d4 {[%clk 0:03:02]}  Bd6 {[%clk 0:02:58]} 7. Bd3 {[%clk 0:03:02]}  Bg4 {[%clk 0:02:58]} 8. O-O {[%clk 0:03:01]}  O-O {[%clk 0:02:59]} 9. h3 {[%clk 0:03:02]}  Bh5 {[%clk 0:02:59]} 10. Be4 {[%clk 0:03:02]}  Re8 {[%clk 0:02:58]} 11. Qd3 {[%clk 0:03:02]}  Bg6 {[%clk 0:02:59]} 12. Bxg6 {[%clk 0:03:02]}  hxg6 {[%clk 0:03:00]} 13. Be3 {[%clk 0:03:03]}  Nd7 {[%clk 0:03:00]} 14. Rfd1 {[%clk 0:03:03]}  f5 {[%clk 0:03:01]} 15. c4 {[%clk 0:03:03]}  Nf6 {[%clk 0:03:01]} 16. Bg5 {[%clk 0:03:03]}  Qc7 {[%clk 0:03:01]} 17. Bxf6 {[%clk 0:03:03]}  gxf6 {[%clk 0:03:02]} 18. c5 {[%clk 0:02:56]}  Bf8 {[%clk 0:03:01]} 19. b4 {[%clk 0:02:44]}  Rad8 {[%clk 0:03:01]} 20. Qc4 {[%clk 0:02:44]}  Rd5 {[%clk 0:02:59]} 21. a4 {[%clk 0:02:43]}  g5 {[%clk 0:02:59]} 22. Ra3 {[%clk 0:02:26]}  Re4 {[%clk 0:02:55]} 23. Re3 {[%clk 0:02:23]}  Qe7 {[%clk 0:02:53]} 24. Rde1 {[%clk 0:02:22]}  Bh6 {[%clk 0:02:53]} 25. Nd2 {[%clk 0:02:11]}  Rxe3 {[%clk 0:02:50]} 26. fxe3 {[%clk 0:01:50]}  g4 {[%clk 0:02:46]} 27. Qe2 {[%clk 0:01:50]}  gxh3 {[%clk 0:02:44]} 28. gxh3 {[%clk 0:01:51]}  f4 {[%clk 0:02:44]} 29. exf4 {[%clk 0:01:16]}  Qxe2 {[%clk 0:02:42]} 30. Rxe2 {[%clk 0:01:17]}  Rxd4 {[%clk 0:02:43]} 31. Ne4 {[%clk 0:01:17]}  Rxb4 {[%clk 0:02:40]} 32. Nxf6+ {[%clk 0:01:17]}  Kg7 {[%clk 0:02:41]} 33. Ne8+ {[%clk 0:01:14]}  Kf8 {[%clk 0:02:41]} 34. f5 {[%clk 0:01:06]}  Bg7 {[%clk 0:02:31]} 35. f6 {[%clk 0:00:38]}  Bh8 {[%clk 0:02:31]} 36. a5 {[%clk 0:00:39]}  Rb5 {[%clk 0:02:26]} 37. Nd6 {[%clk 0:00:38]}  Rb1+ {[%clk 0:02:25]} 38. Kg2 {[%clk 0:00:38]}  Bxf6 {[%clk 0:02:26]} 39. Re8+ {[%clk 0:00:38]}  Kg7 {[%clk 0:02:26]} 40. Ra8 {[%clk 0:00:37]}  a6 {[%clk 0:02:02]} 41. Ra7 {[%clk 0:00:37]}  Be5 {[%clk 0:01:53]} 42. Rxb7 {[%clk 0:00:25]}  Rxb7 {[%clk 0:01:53]} 43. Nxb7 {[%clk 0:00:26]}  Bc7 {[%clk 0:01:53]} 44. Kf3 {[%clk 0:00:24]}  Kf6 {[%clk 0:01:53]} 45. Ke4 {[%clk 0:00:23]}  Kg5 {[%clk 0:01:53]} 46. Nd6 {[%clk 0:00:19]}  Kg6 {[%clk 0:01:44]} 47. Nc4 {[%clk 0:00:17]}  f5+ {[%clk 0:01:44]} 48. Kf3 {[%clk 0:00:17]}  Kf6 {[%clk 0:01:45]} 49. h4 {[%clk 0:00:17]}  Ke6 {[%clk 0:01:45]} 50. h5 {[%clk 0:00:17]}  Kf6 {[%clk 0:01:46]} 51. Nb6 {[%clk 0:00:08]}  Kg5 {[%clk 0:01:44]} 52. Nc4 {[%clk 0:00:07]}  Kxh5 {[%clk 0:01:44]} 53. Nb6 {[%clk 0:00:08]}  Kg6 {[%clk 0:01:43]} 54. Nc4 {[%clk 0:00:09]}  Kf6 {[%clk 0:01:44]} 55. Nb6 {[%clk 0:00:10]}  Ke6 {[%clk 0:01:44]} 56. Ke3 {[%clk 0:00:10]}  Ke5 {[%clk 0:01:41]} 57. Kd3 {[%clk 0:00:07]}  f4 {[%clk 0:01:41]} 58. Na4 {[%clk 0:00:04]}  Kd5 {[%clk 0:01:41]} 59. Nb6+ {[%clk 0:00:02]}  Kxc5 {[%clk 0:01:41]} 60. Nd7+ {[%clk 0:00:03]}  Kb4 {[%clk 0:01:40]} 61. Nb8 {[%clk 0:00:02]}  Bxb8 {[%clk 0:01:40]} 0-1


[Site "https://www.chess.com"]

[Event "Titled Tuesday Blitz January 17 Early 2023"]
[White "Xu, Yi"]
[Black "Urazayev, Arystanbek"]
[WhiteFideId "8605564"]
[BlackFideId "13709810"]
[WhiteElo "2527"]
[BlackElo "2460"]
[Result "0-1"]
[Round "11"]
[TimeControl "180+2"]
[Date "2023.01.17"]
[WhiteClock "0:00:02"]
[BlackClock "0:01:00"]

1. e4 {[%clk 0:03:00]}  c5 {[%clk 0:02:57]} 2. Nf3 {[%clk 0:03:00]}  e6 {[%clk 0:02:57]} 3. d4 {[%clk 0:03:00]}  cxd4 {[%clk 0:02:58]} 4. Nxd4 {[%clk 0:03:01]}  Nf6 {[%clk 0:02:59]} 5. Nc3 {[%clk 0:03:01]}  Nc6 {[%clk 0:03:00]} 6. Nxc6 {[%clk 0:03:01]}  bxc6 {[%clk 0:03:01]} 7. e5 {[%clk 0:03:02]}  Nd5 {[%clk 0:03:01]} 8. Ne4 {[%clk 0:03:02]}  Bb7 {[%clk 0:03:02]} 9. Be2 {[%clk 0:02:43]}  c5 {[%clk 0:03:02]} 10. O-O {[%clk 0:02:40]}  Qc7 {[%clk 0:03:02]} 11. Nd6+ {[%clk 0:02:28]}  Bxd6 {[%clk 0:03:02]} 12. exd6 {[%clk 0:02:28]}  Qc6 {[%clk 0:03:02]} 13. f3 {[%clk 0:01:52]}  e5 {[%clk 0:03:03]} 14. c4 {[%clk 0:01:37]}  Nf4 {[%clk 0:03:03]} 15. Bxf4 {[%clk 0:01:37]}  exf4 {[%clk 0:03:04]} 16. Qd2 {[%clk 0:01:36]}  O-O {[%clk 0:03:04]} 17. Qxf4 {[%clk 0:01:36]}  Rae8 {[%clk 0:03:05]} 18. Bd3 {[%clk 0:01:26]}  Re6 {[%clk 0:03:05]} 19. Rad1 {[%clk 0:01:13]}  g6 {[%clk 0:03:05]} 20. Be4 {[%clk 0:01:09]}  Qa6 {[%clk 0:03:04]} 21. Bxb7 {[%clk 0:01:09]}  Qxb7 {[%clk 0:03:05]} 22. Rd2 {[%clk 0:01:01]}  Rfe8 {[%clk 0:03:02]} 23. h4 {[%clk 0:00:54]}  h5 {[%clk 0:02:54]} 24. b3 {[%clk 0:00:53]}  a5 {[%clk 0:02:54]} 25. Kh2 {[%clk 0:00:53]}  Qb4 {[%clk 0:02:53]} 26. Rff2 {[%clk 0:00:34]}  Re5 {[%clk 0:02:41]} 27. Qf6 {[%clk 0:00:31]}  a4 {[%clk 0:02:30]} 28. Rd5 {[%clk 0:00:17]}  Rxd5 {[%clk 0:02:06]} 29. cxd5 {[%clk 0:00:17]}  axb3 {[%clk 0:02:06]} 30. axb3 {[%clk 0:00:17]}  Qxb3 {[%clk 0:02:02]} 31. f4 {[%clk 0:00:18]}  Qd1 {[%clk 0:01:47]} 32. f5 {[%clk 0:00:11]}  Re1 {[%clk 0:01:43]} 33. Qd8+ {[%clk 0:00:04]}  Kg7 {[%clk 0:01:43]} 34. Qg5 {[%clk 0:00:03]}  Qd4 {[%clk 0:01:10]} 35. f6+ {[%clk 0:00:02]}  Kh7 {[%clk 0:01:10]} 36. Rf3 {[%clk 0:00:02]}  Rg1 {[%clk 0:01:05]} 37. Rg3 {[%clk 0:00:02]}  Re1 {[%clk 0:01:01]} 38. Rf3 {[%clk 0:00:02]}  Qg1+ {[%clk 0:00:59]} 39. Kg3 {[%clk 0:00:02]}  Re4 {[%clk 0:01:00]} 40. Qd2 {[%clk 0:00:02]}  Rg4+ {[%clk 0:00:59]} 41. Kh3 {[%clk 0:00:02]}  Qh1# {[%clk 0:01:00]} 0-1


[Site "https://www.chess.com"]

[Event "Titled Tuesday Blitz January 17 Early 2023"]
[White "Movahed, Sina"]
[Black "Mahdavi, Reza"]
[WhiteFideId "42520835"]
[BlackFideId "12595926"]
[WhiteElo "2340"]
[BlackElo "2339"]
[Result "1-0"]
[Round "11"]
[TimeControl "180+2"]
[Date "2023.01.17"]
[WhiteClock "0:01:12"]
[BlackClock "0:00:02"]

1. e4 {[%clk 0:02:59]}  c5 {[%clk 0:02:06]} 2. Nf3 {[%clk 0:02:58]}  e6 {[%clk 0:02:01]} 3. b3 {[%clk 0:02:56]}  a6 {[%clk 0:01:58]} 4. Bb2 {[%clk 0:02:56]}  Nc6 {[%clk 0:01:58]} 5. c4 {[%clk 0:02:55]}  Nf6 {[%clk 0:01:58]} 6. e5 {[%clk 0:02:52]}  Ng4 {[%clk 0:01:58]} 7. Bd3 {[%clk 0:02:51]}  Qc7 {[%clk 0:01:30]} 8. Qe2 {[%clk 0:02:49]}  Be7 {[%clk 0:01:20]} 9. O-O {[%clk 0:02:44]}  b6 {[%clk 0:01:17]} 10. h3 {[%clk 0:02:43]}  Nh6 {[%clk 0:01:17]} 11. Nc3 {[%clk 0:02:43]}  Bb7 {[%clk 0:01:15]} 12. Rae1 {[%clk 0:02:33]}  O-O-O {[%clk 0:01:09]} 13. Be4 {[%clk 0:02:23]}  f5 {[%clk 0:01:05]} 14. Bxc6 {[%clk 0:02:19]}  Bxc6 {[%clk 0:01:02]} 15. d4 {[%clk 0:02:17]}  cxd4 {[%clk 0:00:56]} 16. Nxd4 {[%clk 0:02:16]}  Nf7 {[%clk 0:00:53]} 17. Nd5 {[%clk 0:02:09]}  exd5 {[%clk 0:00:42]} 18. cxd5 {[%clk 0:02:10]}  Bc5 {[%clk 0:00:36]} 19. dxc6 {[%clk 0:02:08]}  Bxd4 {[%clk 0:00:35]} 20. cxd7+ {[%clk 0:02:07]}  Kb7 {[%clk 0:00:20]} 21. Bxd4 {[%clk 0:02:04]}  Rxd7 {[%clk 0:00:20]} 22. Bb2 {[%clk 0:02:02]}  Ng5 {[%clk 0:00:16]} 23. Rc1 {[%clk 0:01:58]}  Qd8 {[%clk 0:00:15]} 24. e6 {[%clk 0:01:56]}  Re7 {[%clk 0:00:15]} 25. f4 {[%clk 0:01:39]}  Ne4 {[%clk 0:00:14]} 26. Rfd1 {[%clk 0:01:36]}  Qe8 {[%clk 0:00:14]} 27. Be5 {[%clk 0:01:35]}  Qb5 {[%clk 0:00:07]} 28. Qc2 {[%clk 0:01:18]}  Qc5+ {[%clk 0:00:04]} 29. Kh2 {[%clk 0:01:14]}  Qxc2 {[%clk 0:00:01]} 30. Rxc2 {[%clk 0:01:15]}  Rhe8 {[%clk 0:00:02]} 31. Rd7+ {[%clk 0:01:13]}  Ka8 {[%clk 0:00:02]} 32. Rcc7 {[%clk 0:01:12]}  Nc5 {[%clk 0:00:02]} 33. Ra7# {[%clk 0:01:12]} 1-0


[Site "https://www.chess.com"]

[Event "Titled Tuesday Blitz January 17 Early 2023"]
[White "Indjic, Aleksandar"]
[Black "Tanenbaum, Zachary"]
[WhiteFideId "911925"]
[BlackFideId "2060850"]
[WhiteElo "2618"]
[BlackElo "2261"]
[Result "1-0"]
[Round "11"]
[TimeControl "180+2"]
[Date "2023.01.17"]
[WhiteClock "0:01:45"]
[BlackClock "0:01:06"]

1. e4 {[%clk 0:02:50]}  e5 {[%clk 0:03:00]} 2. Nf3 {[%clk 0:02:50]}  Nc6 {[%clk 0:03:00]} 3. Nc3 {[%clk 0:02:50]}  Nf6 {[%clk 0:03:00]} 4. Bb5 {[%clk 0:02:50]}  Bd6 {[%clk 0:03:00]} 5. a3 {[%clk 0:02:48]}  a6 {[%clk 0:02:59]} 6. Bc4 {[%clk 0:02:47]}  b5 {[%clk 0:02:59]} 7. Ba2 {[%clk 0:02:46]}  O-O {[%clk 0:02:52]} 8. d3 {[%clk 0:02:46]}  Be7 {[%clk 0:02:49]} 9. g4 {[%clk 0:02:32]}  Bc5 {[%clk 0:02:39]} 10. Rg1 {[%clk 0:02:24]}  d6 {[%clk 0:02:37]} 11. Bg5 {[%clk 0:02:15]}  h6 {[%clk 0:02:35]} 12. Bh4 {[%clk 0:02:14]}  g5 {[%clk 0:02:31]} 13. Nxg5 {[%clk 0:02:13]}  hxg5 {[%clk 0:02:31]} 14. Bxg5 {[%clk 0:02:13]}  Be6 {[%clk 0:02:31]} 15. Bd5 {[%clk 0:02:08]}  Bd7 {[%clk 0:02:24]} 16. Rg3 {[%clk 0:02:03]}  Kg7 {[%clk 0:01:45]} 17. h4 {[%clk 0:02:00]}  Qc8 {[%clk 0:01:23]} 18. Qd2 {[%clk 0:01:53]}  Nxd5 {[%clk 0:01:13]} 19. exd5 {[%clk 0:01:48]}  Nd4 {[%clk 0:01:10]} 20. Bf6+ {[%clk 0:01:46]}  Kh7 {[%clk 0:01:06]} 21. Qg5 {[%clk 0:01:45]} 1-0


[Site "https://www.chess.com"]

[Event "Titled Tuesday Blitz January 17 Early 2023"]
[White "Baskakov, Egor"]
[Black "Kopczynski, Michal"]
[WhiteFideId "24197866"]
[BlackFideId "1124200"]
[WhiteElo "2215"]
[BlackElo "2225"]
[Result "1-0"]
[Round "11"]
[TimeControl "180+2"]
[Date "2023.01.17"]
[WhiteClock "0:00:29"]
[BlackClock "0:00:22"]

1. e4 {[%clk 0:03:00]}  c5 {[%clk 0:02:58]} 2. Nf3 {[%clk 0:02:59]}  d6 {[%clk 0:02:59]} 3. d4 {[%clk 0:02:59]}  cxd4 {[%clk 0:02:59]} 4. Nxd4 {[%clk 0:02:59]}  Nf6 {[%clk 0:03:00]} 5. Nc3 {[%clk 0:02:59]}  g6 {[%clk 0:03:00]} 6. g3 {[%clk 0:02:59]}  Bg7 {[%clk 0:03:01]} 7. Bg2 {[%clk 0:02:59]}  O-O {[%clk 0:03:01]} 8. h3 {[%clk 0:02:59]}  Nc6 {[%clk 0:03:01]} 9. Nde2 {[%clk 0:02:59]}  Bd7 {[%clk 0:03:00]} 10. O-O {[%clk 0:02:59]}  Rc8 {[%clk 0:02:58]} 11. a4 {[%clk 0:02:52]}  Ne5 {[%clk 0:02:54]} 12. Nd5 {[%clk 0:02:51]}  Nc4 {[%clk 0:02:52]} 13. Ra2 {[%clk 0:02:51]}  Nxd5 {[%clk 0:02:51]} 14. exd5 {[%clk 0:02:52]}  Bf5 {[%clk 0:02:32]} 15. b3 {[%clk 0:02:49]}  Nb6 {[%clk 0:02:27]} 16. Be3 {[%clk 0:02:33]}  h5 {[%clk 0:02:22]} 17. c4 {[%clk 0:02:28]}  a6 {[%clk 0:02:17]} 18. Nd4 {[%clk 0:02:20]}  Bd7 {[%clk 0:02:08]} 19. a5 {[%clk 0:02:18]}  Na8 {[%clk 0:02:08]} 20. Re1 {[%clk 0:02:17]}  b5 {[%clk 0:01:36]} 21. axb6 {[%clk 0:02:14]}  Nxb6 {[%clk 0:01:32]} 22. Rxa6 {[%clk 0:02:13]}  Rb8 {[%clk 0:01:32]} 23. Ra7 {[%clk 0:02:08]}  Nc8 {[%clk 0:01:27]} 24. Ra2 {[%clk 0:02:03]}  Nb6 {[%clk 0:01:26]} 25. Bg5 {[%clk 0:01:52]}  Re8 {[%clk 0:01:24]} 26. Rae2 {[%clk 0:01:49]}  Nc8 {[%clk 0:01:21]} 27. Nc6 {[%clk 0:01:20]}  Bxc6 {[%clk 0:01:20]} 28. dxc6 {[%clk 0:01:21]}  Qb6 {[%clk 0:01:21]} 29. Re3 {[%clk 0:01:20]}  Bd4 {[%clk 0:01:10]} 30. Rf3 {[%clk 0:01:16]}  e6 {[%clk 0:01:02]} 31. g4 {[%clk 0:01:04]}  hxg4 {[%clk 0:00:59]} 32. hxg4 {[%clk 0:01:05]}  Ne7 {[%clk 0:00:53]} 33. Qd2 {[%clk 0:00:55]}  Nxc6 {[%clk 0:00:51]} 34. Rh3 {[%clk 0:00:55]}  f6 {[%clk 0:00:37]} 35. Bxc6 {[%clk 0:00:44]}  fxg5 {[%clk 0:00:30]} 36. Bxe8 {[%clk 0:00:40]}  Rxe8 {[%clk 0:00:28]} 37. Qxg5 {[%clk 0:00:38]}  Bxf2+ {[%clk 0:00:26]} 38. Kg2 {[%clk 0:00:35]}  Kg7 {[%clk 0:00:26]} 39. Qh6+ {[%clk 0:00:32]}  Kf7 {[%clk 0:00:24]} 40. Rf3+ {[%clk 0:00:32]}  Ke7 {[%clk 0:00:24]} 41. Rxf2 {[%clk 0:00:31]}  Qc6+ {[%clk 0:00:23]} 42. Rf3 {[%clk 0:00:30]}  Kd7 {[%clk 0:00:23]} 43. Qxg6 {[%clk 0:00:29]}  Rf8 {[%clk 0:00:22]} 44. Qe4 {[%clk 0:00:29]} 1-0


[Site "https://www.chess.com"]

[Event "Titled Tuesday Blitz January 17 Early 2023"]
[White "Deac, Bogdan-Daniel"]
[Black "Csonka, Balazs"]
[WhiteFideId "1226380"]
[BlackFideId "742910"]
[WhiteElo "2700"]
[BlackElo "2496"]
[Result "1-0"]
[Round "11"]
[TimeControl "180+2"]
[Date "2023.01.17"]
[WhiteClock "0:00:22"]
[BlackClock "0:00:03"]

1. e4 {[%clk 0:03:00]}  Nf6 {[%clk 0:02:59]} 2. e5 {[%clk 0:03:00]}  Nd5 {[%clk 0:02:59]} 3. d4 {[%clk 0:03:00]}  d6 {[%clk 0:02:59]} 4. Nf3 {[%clk 0:03:01]}  dxe5 {[%clk 0:02:57]} 5. Nxe5 {[%clk 0:03:01]}  c6 {[%clk 0:02:55]} 6. c4 {[%clk 0:02:59]}  Nf6 {[%clk 0:02:51]} 7. Nc3 {[%clk 0:02:57]}  Nbd7 {[%clk 0:02:43]} 8. f4 {[%clk 0:02:56]}  g6 {[%clk 0:02:40]} 9. Be2 {[%clk 0:02:53]}  Bg7 {[%clk 0:02:40]} 10. Be3 {[%clk 0:02:54]}  O-O {[%clk 0:02:39]} 11. O-O {[%clk 0:02:54]}  Qc7 {[%clk 0:02:33]} 12. Bf3 {[%clk 0:02:44]}  Nb6 {[%clk 0:02:09]} 13. Qe2 {[%clk 0:02:41]}  Be6 {[%clk 0:02:07]} 14. Rad1 {[%clk 0:02:39]}  Rad8 {[%clk 0:02:07]} 15. a4 {[%clk 0:02:28]}  Nfd7 {[%clk 0:01:43]} 16. b3 {[%clk 0:02:20]}  Nxe5 {[%clk 0:01:09]} 17. fxe5 {[%clk 0:02:18]}  a5 {[%clk 0:00:58]} 18. h4 {[%clk 0:02:00]}  h5 {[%clk 0:00:47]} 19. Ne4 {[%clk 0:01:53]}  Bf5 {[%clk 0:00:44]} 20. Ng3 {[%clk 0:01:53]}  e6 {[%clk 0:00:39]} 21. Bg5 {[%clk 0:01:40]}  Rd7 {[%clk 0:00:36]} 22. Bxh5 {[%clk 0:01:35]}  c5 {[%clk 0:00:29]} 23. Nxf5 {[%clk 0:01:08]}  exf5 {[%clk 0:00:27]} 24. e6 {[%clk 0:00:30]}  Rxd4 {[%clk 0:00:27]} 25. e7 {[%clk 0:00:31]}  Re8 {[%clk 0:00:21]} 26. Bxg6 {[%clk 0:00:31]}  fxg6 {[%clk 0:00:18]} 27. Qe6+ {[%clk 0:00:30]}  Kh7 {[%clk 0:00:18]} 28. Qf7 {[%clk 0:00:30]}  Qc6 {[%clk 0:00:07]} 29. Rxd4 {[%clk 0:00:26]}  cxd4 {[%clk 0:00:07]} 30. Re1 {[%clk 0:00:26]}  Nc8 {[%clk 0:00:02]} 31. Re6 {[%clk 0:00:24]}  Qd7 {[%clk 0:00:03]} 32. Rxg6 {[%clk 0:00:22]} 1-0


[Site "https://www.chess.com"]

[Event "Titled Tuesday Blitz January 17 Early 2023"]
[White "Aravindh, Chithambaram VR."]
[Black "Szpar, Milosz"]
[WhiteFideId "5072786"]
[BlackFideId "1184989"]
[WhiteElo "2633"]
[BlackElo "2447"]
[Result "1-0"]
[Round "11"]
[TimeControl "180+2"]
[Date "2023.01.17"]
[WhiteClock "0:02:03"]
[BlackClock "0:00:26"]

1. b3 {[%clk 0:03:00]}  d5 {[%clk 0:01:52]} 2. Bb2 {[%clk 0:02:59]}  Bg4 {[%clk 0:01:52]} 3. Nf3 {[%clk 0:02:58]}  Bxf3 {[%clk 0:01:52]} 4. exf3 {[%clk 0:02:57]}  e6 {[%clk 0:01:53]} 5. d4 {[%clk 0:02:55]}  Nf6 {[%clk 0:01:54]} 6. Bd3 {[%clk 0:02:56]}  g6 {[%clk 0:01:54]} 7. Nd2 {[%clk 0:02:56]}  Bg7 {[%clk 0:01:55]} 8. f4 {[%clk 0:02:56]}  O-O {[%clk 0:01:56]} 9. Nf3 {[%clk 0:02:57]}  c5 {[%clk 0:01:57]} 10. O-O {[%clk 0:02:55]}  cxd4 {[%clk 0:01:57]} 11. Nxd4 {[%clk 0:02:56]}  Qb6 {[%clk 0:01:53]} 12. c3 {[%clk 0:02:52]}  Ne8 {[%clk 0:01:51]} 13. Ba3 {[%clk 0:02:43]}  Nd6 {[%clk 0:01:50]} 14. f5 {[%clk 0:02:36]}  gxf5 {[%clk 0:01:48]} 15. Qh5 {[%clk 0:02:36]}  Nd7 {[%clk 0:01:47]} 16. Rae1 {[%clk 0:02:28]}  Nf6 {[%clk 0:01:45]} 17. Qh4 {[%clk 0:02:29]}  Rfe8 {[%clk 0:01:41]} 18. Re3 {[%clk 0:02:27]}  Nde4 {[%clk 0:01:41]} 19. Bxe4 {[%clk 0:02:25]}  Nxe4 {[%clk 0:01:36]} 20. Rh3 {[%clk 0:02:24]}  h6 {[%clk 0:01:36]} 21. Bc1 {[%clk 0:02:23]}  Nxc3 {[%clk 0:01:35]} 22. Be3 {[%clk 0:02:07]}  f4 {[%clk 0:01:29]} 23. Nf5 {[%clk 0:02:06]}  fxe3 {[%clk 0:01:26]} 24. Nxg7 {[%clk 0:02:07]}  exf2+ {[%clk 0:01:04]} 25. Kh1 {[%clk 0:02:06]}  Ne4 {[%clk 0:01:05]} 26. Qxh6 {[%clk 0:02:04]}  Kf8 {[%clk 0:00:26]} 27. Nf5+ {[%clk 0:02:03]} 1-0


[Site "https://www.chess.com"]

[Event "Titled Tuesday Blitz January 17 Early 2023"]
[White "Pakleza, Zbigniew"]
[Black "Andreev, Eduard"]
[WhiteFideId "1119290"]
[BlackFideId "14103400"]
[WhiteElo "2494"]
[BlackElo "2413"]
[Result "1-0"]
[Round "11"]
[TimeControl "180+2"]
[Date "2023.01.17"]
[WhiteClock "0:00:11"]
[BlackClock "0:00:22"]

1. d4 {[%clk 0:02:57]}  e6 {[%clk 0:02:57]} 2. Nf3 {[%clk 0:02:57]}  Nf6 {[%clk 0:02:53]} 3. Bf4 {[%clk 0:02:57]}  c5 {[%clk 0:02:53]} 4. c3 {[%clk 0:02:57]}  Qb6 {[%clk 0:02:53]} 5. Qb3 {[%clk 0:02:57]}  Nc6 {[%clk 0:02:46]} 6. e3 {[%clk 0:02:48]}  d5 {[%clk 0:02:43]} 7. Nbd2 {[%clk 0:02:47]}  Bd7 {[%clk 0:02:36]} 8. Qxb6 {[%clk 0:02:39]}  axb6 {[%clk 0:02:35]} 9. Bc7 {[%clk 0:02:40]}  cxd4 {[%clk 0:02:07]} 10. exd4 {[%clk 0:02:38]}  Be7 {[%clk 0:01:48]} 11. Bxb6 {[%clk 0:02:37]}  O-O {[%clk 0:01:49]} 12. Bc7 {[%clk 0:02:28]}  Rfc8 {[%clk 0:01:46]} 13. Bf4 {[%clk 0:02:25]}  Ra7 {[%clk 0:01:40]} 14. a3 {[%clk 0:02:23]}  Na5 {[%clk 0:01:34]} 15. Ne5 {[%clk 0:02:20]}  Ba4 {[%clk 0:01:33]} 16. Bd3 {[%clk 0:02:15]}  Nb3 {[%clk 0:01:08]} 17. Nxb3 {[%clk 0:02:13]}  Bxb3 {[%clk 0:01:09]} 18. h3 {[%clk 0:02:04]}  Bd6 {[%clk 0:01:08]} 19. O-O {[%clk 0:01:56]}  Bxe5 {[%clk 0:01:07]} 20. Bxe5 {[%clk 0:01:55]}  Nd7 {[%clk 0:01:07]} 21. Rfe1 {[%clk 0:01:42]}  Nb6 {[%clk 0:01:01]} 22. Re3 {[%clk 0:01:03]}  Nc4 {[%clk 0:00:55]} 23. Rg3 {[%clk 0:00:59]}  Nxe5 {[%clk 0:00:46]} 24. dxe5 {[%clk 0:01:00]}  Ra4 {[%clk 0:00:42]} 25. Rg4 {[%clk 0:00:55]}  Rxg4 {[%clk 0:00:37]} 26. hxg4 {[%clk 0:00:56]}  h6 {[%clk 0:00:37]} 27. f4 {[%clk 0:00:48]}  Kf8 {[%clk 0:00:36]} 28. Kf2 {[%clk 0:00:47]}  Ke7 {[%clk 0:00:36]} 29. Ke3 {[%clk 0:00:48]}  Kd7 {[%clk 0:00:35]} 30. a4 {[%clk 0:00:45]}  Ra8 {[%clk 0:00:33]} 31. Ra3 {[%clk 0:00:41]}  Bd1 {[%clk 0:00:29]} 32. Be2 {[%clk 0:00:27]}  Bxe2 {[%clk 0:00:28]} 33. Kxe2 {[%clk 0:00:28]}  Kc6 {[%clk 0:00:28]} 34. Kd3 {[%clk 0:00:24]}  Kc5 {[%clk 0:00:25]} 35. g3 {[%clk 0:00:21]}  b6 {[%clk 0:00:25]} 36. b4+ {[%clk 0:00:18]}  Kc6 {[%clk 0:00:25]} 37. a5 {[%clk 0:00:18]}  bxa5 {[%clk 0:00:24]} 38. Rxa5 {[%clk 0:00:17]}  Rxa5 {[%clk 0:00:21]} 39. bxa5 {[%clk 0:00:18]}  Kb5 {[%clk 0:00:21]} 40. Kd4 {[%clk 0:00:06]}  Kxa5 {[%clk 0:00:21]} 41. Kc5 {[%clk 0:00:07]}  Ka4 {[%clk 0:00:19]} 42. c4 {[%clk 0:00:07]}  dxc4 {[%clk 0:00:17]} 43. Kxc4 {[%clk 0:00:07]}  Ka3 {[%clk 0:00:17]} 44. f5 {[%clk 0:00:07]}  Kb2 {[%clk 0:00:15]} 45. fxe6 {[%clk 0:00:07]}  fxe6 {[%clk 0:00:16]} 46. Kc5 {[%clk 0:00:07]}  Kc3 {[%clk 0:00:17]} 47. Kd6 {[%clk 0:00:08]}  Kd4 {[%clk 0:00:17]} 48. Kxe6 {[%clk 0:00:08]}  Ke4 {[%clk 0:00:18]} 49. Kd6 {[%clk 0:00:09]}  Kf3 {[%clk 0:00:19]} 50. e6 {[%clk 0:00:09]}  Kxg4 {[%clk 0:00:20]} 51. e7 {[%clk 0:00:10]}  Kxg3 {[%clk 0:00:21]} 52. e8=Q {[%clk 0:00:11]}  g5 {[%clk 0:00:21]} 53. Qh5 {[%clk 0:00:10]}  g4 {[%clk 0:00:22]} 54. Ke5 {[%clk 0:00:11]}  Kf3 {[%clk 0:00:22]} 55. Kf5 {[%clk 0:00:11]} 1-0


[Site "https://www.chess.com"]